bitfinex/quotes_SOLUSD_20241205
["timestamp","ask_amount","ask_price","bid_price","bid_amount"]
[1733406202073,0.78095373,240.14,240.05,12.50749726]
[1733406203170,0.78095373,240.14,240.07,12.50749726]
[1733406203602,12.50749726,240.17,240.09,12.50749726]
[1733406203781,0.78085196,240.16,240.09,12.50749726]
[1733406204891,0.78085196,240.16,240.07,12.50749726]
[1733406205103,12.50749726,240.15,240.07,12.50749726]
[1733406205309,0.78095238,240.14,240.07,12.50749726]
[1733406207516,0.78095238,240.14,240.05,12.50749726]
[1733406207722,12.50749726,240.13,240.03,12.50749726]
[1733406208018,12.50749726,240.11,240.03,12.50749726]
[1733406208198,0.7811064,240.1,240.03,12.50749726]
[1733406208401,7.2065064,240.1,240.03,12.50749726]
[1733406209595,6.4704,240.15,240.07,12.50749726]
[1733406209795,0.78092668,240.14,240.07,12.50749726]
[1733406210195,12.50749726,240.13,240.05,12.50749726]
[1733406210394,0.78104202,240.12,240.05,12.50749726]
[1733406210694,12.50749726,240.09,240.0,12.50749726]
[1733406210910,1.5208,240.11,239.98,12.50749726]
[1733406210911,12.50749726,240.07,239.98,12.50749726]
[1733406211201,12.50749726,240.05,239.98,12.50749726]
[1733406211405,1.5208,240.11,240.04,12.50749726]
[1733406211406,2.30207592,240.11,240.04,12.50749726]
[1733406211610,0.78099383,240.14,240.09,12.50749726]
[1733406211794,6.4704,240.15,240.13,12.50749726]
[1733406212423,0.78081945,240.14,240.11,12.50749726]
[1733406212733,6.4704,240.15,240.11,12.50749726]
[1733406212911,7.25124857,240.15,240.13,12.50749726]
[1733406213110,6.4704,240.15,240.13,12.50749726]
[1733406214930,0.78083384,240.19,240.13,12.50749726]
[1733406215133,0.7807467,240.2,240.15,12.50749726]
[1733406217096,13.28824396,240.2,240.11,12.50749726]
[1733406217325,13.28824396,240.2,240.03,10.4151]
[1733406217326,12.50749726,240.18,240.09,12.50749726]
[1733406217537,0.78090687,240.17,240.09,12.50749726]
[1733406217707,0.78090687,240.17,240.11,12.50749726]
[1733406218630,0.78085393,240.19,240.13,12.50749726]
[1733406219411,0.78085393,240.19,240.11,12.50749726]
[1733406220229,0.78085393,240.19,240.13,12.50749726]
[1733406222218,0.78073832,240.2,240.13,12.50749726]
[1733406223448,13.28823558,240.2,240.13,12.50749726]
[1733406223631,13.28823558,240.2,240.11,12.50749726]
[1733406224456,12.50749726,240.18,240.11,12.50749726]
[1733406224747,12.50749726,240.16,240.09,12.50749726]
[1733406224920,0.78091508,240.15,240.09,12.50749726]
[1733406226734,0.78092504,240.18,240.13,12.50749726]
[1733406227422,20.0,240.18,240.15,12.50749726]
[1733406227749,0.5632042,240.17,240.13,12.50749726]
[1733406228645,0.5632042,240.17,240.11,12.50749726]
[1733406228843,12.50749726,240.18,240.09,12.50749726]
[1733406229030,0.5632042,240.17,240.09,12.50749726]
[1733406229845,0.5632042,240.17,240.11,12.50749726]
[1733406230049,0.5632042,240.19,240.11,12.50749726]
[1733406230751,12.50749726,240.18,240.11,12.50749726]
[1733406230925,0.5632042,240.17,240.11,12.50749726]
[1733406231851,6.1067,240.21,240.15,12.50749726]
[1733406232149,69.25530273,240.42,240.19,12.50749726]
[1733406232150,6.052,240.27,240.19,12.50749726]
[1733406232329,0.5632042,240.26,240.21,12.50749726]
[1733406232529,6.6152042,240.27,240.21,12.50749726]
[1733406232723,6.6152042,240.27,240.2,12.50749726]
[1733406233119,19.12270146,240.27,240.19,12.50749726]
[1733406233437,18.62270146,240.27,240.19,12.50749726]
[1733406233952,18.62270146,240.27,240.2,12.50749726]
[1733406234135,6.1152042,240.27,240.2,12.50749726]
[1733406234334,12.50749726,240.26,240.18,12.50749726]
[1733406234652,0.5632042,240.26,240.19,12.50749726]
[1733406234856,0.5632042,240.26,240.2,12.50749726]
[1733406235744,0.5632042,240.26,240.15,12.50749726]
[1733406235745,12.50749726,240.22,240.15,12.50749726]
[1733406236058,12.50749726,240.2,240.13,12.50749726]
[1733406236259,0.5632042,240.24,240.18,12.50749726]
[1733406236550,0.5632042,240.24,240.09,2.24585047]
[1733406236551,18.05949726,240.27,240.2,12.50749726]
[1733406236757,5.552,240.27,240.22,12.50749726]
[1733406236954,5.552,240.27,240.23,12.50749726]
[1733406237359,5.552,240.27,240.24,12.50749726]
[1733406237928,5.552,240.27,240.23,12.50749726]
[1733406238128,5.552,240.27,240.14,34.187084]
[1733406238351,6.1152042,240.27,240.21,12.50749726]
[1733406239772,6.1152042,240.27,240.22,12.50749726]
[1733406239946,5.552,240.27,240.23,12.50749726]
[1733406240266,20.0,240.28,240.24,12.50749726]
[1733406241170,0.5632042,240.3,240.24,12.50749726]
[1733406241342,0.5632042,240.3,240.23,12.50749726]
[1733406241869,13.07070146,240.3,240.23,12.50749726]
[1733406242556,13.07070146,240.3,240.22,12.50749726]
[1733406242759,12.50749726,240.29,240.22,12.50749726]
[1733406243143,12.50749726,240.3,240.22,12.50749726]
[1733406243349,0.5632042,240.29,240.22,12.50749726]
[1733406243961,13.07070146,240.29,240.22,12.50749726]
[1733406244157,0.5632042,240.29,240.22,12.50749726]
[1733406245177,13.07070146,240.29,240.22,12.50749726]
[1733406246054,12.50749726,240.28,240.21,12.50749726]
[1733406246371,12.50749726,240.25,240.18,12.50749726]
[1733406246552,12.00749726,240.26,240.19,12.50749726]
[1733406246883,12.50749726,240.27,240.2,12.50749726]
[1733406247241,12.50749726,240.28,240.2,12.50749726]
[1733406247444,0.5632042,240.27,240.2,12.50749726]
[1733406248348,0.5632042,240.27,240.21,12.50749726]
[1733406248569,0.5632042,240.27,240.2,12.50749726]
[1733406249572,13.07070146,240.27,240.2,12.50749726]
[1733406253178,12.50749726,240.26,240.19,12.50749726]
[1733406253376,12.50749726,240.27,240.2,12.50749726]
[1733406254275,12.50749726,240.26,240.18,12.50749726]
[1733406254574,12.50749726,240.24,240.17,12.50749726]
[1733406254773,12.50749726,240.22,240.13,12.50749726]
[1733406254946,0.5632042,240.21,240.13,12.50749726]
[1733406256279,12.50749726,240.2,240.13,12.50749726]
[1733406256453,0.5632042,240.19,240.13,12.50749726]
[1733406258879,12.50749726,240.18,240.03,10.4153]
[1733406259083,0.5632042,240.17,240.09,12.50749726]
[1733406259998,0.5632042,240.17,240.1,7.99296442]
[1733406260371,0.5632042,240.22,240.16,7.99296442]
[1733406260598,7.9832,240.23,240.1,0.62463868]
[1733406260599,7.9832,240.23,240.18,7.99296442]
[1733406261386,12.507497,240.32,240.22,7.99296442]
[1733406261387,13.5807,240.3,240.22,7.99296442]
[1733406261595,0.5632042,240.29,240.23,7.99296442]
[1733406262069,0.5632042,240.29,240.24,7.99296442]
[1733406262798,0.5632042,240.29,240.23,7.99296442]
[1733406263885,0.5632042,240.29,240.22,7.99296442]
[1733406264202,0.5632042,240.29,240.22,12.47680291]
[1733406264582,0.5632042,240.29,240.23,12.47680291]
[1733406264894,0.5632042,240.29,240.18,20.0]
[1733406264895,0.5632042,240.29,240.22,12.47680291]
[1733406265597,18.77490291,240.3,240.17,0.62433187]
[1733406265598,6.2981,240.3,240.25,12.47680291]
[1733406265798,6.2981,240.3,240.26,12.47680291]
[1733406266873,6.2981,240.3,240.25,12.47680291]
[1733406267077,6.2981,240.3,240.24,12.47680291]
[1733406267299,6.2981,240.3,240.26,12.47680291]
[1733406268873,0.5632042,240.36,240.29,12.47680291]
[1733406269077,0.5632042,240.36,240.31,12.47680291]
[1733406269278,13.04000711,240.38,240.3,12.47680291]
[1733406270491,9.3149992,240.39,240.24,12.47680291]
[1733406270492,0.5632042,240.39,240.33,12.47680291]
[1733406270697,0.5632042,240.4,240.34,12.47680291]
[1733406270979,12.47680291,240.36,240.29,12.47680291]
[1733406271174,13.04000711,240.35,240.27,12.47680291]
[1733406271382,7.2795,240.4,240.23,20.62420168]
[1733406271383,12.47680291,240.38,240.23,20.62420168]
[1733406271588,12.47680291,240.38,240.31,12.47680291]
[1733406271781,0.5632042,240.37,240.31,12.47680291]
[1733406272171,13.04000711,240.39,240.32,12.47680291]
[1733406272601,0.5632042,240.39,240.32,12.47680291]
[1733406273886,13.04000711,240.39,240.32,12.47680291]
[1733406274087,12.47680291,240.35,240.27,12.47680291]
[1733406274287,13.04000711,240.34,240.27,12.47680291]
[1733406274677,0.5632042,240.34,240.27,12.47680291]
[1733406275012,0.5632042,240.34,240.28,12.47680291]
[1733406276702,0.5632042,240.34,240.29,12.47680291]
[1733406276906,0.5632042,240.35,240.29,12.47680291]
[1733406278107,12.47680291,240.4,240.33,12.47680291]
[1733406278411,20.0,240.38,240.33,12.47680291]
[1733406278588,0.5632042,240.37,240.31,12.47680291]
[1733406280720,0.5632042,240.37,240.3,12.47680291]
[1733406281097,0.5632042,240.37,240.32,12.47680291]
[1733406281302,20.0,240.38,240.33,12.47680291]
[1733406281482,20.5632042,240.38,240.33,12.47680291]
[1733406281898,20.5632042,240.38,240.31,12.47680291]
[1733406282237,33.04000711,240.38,240.3,12.47680291]
[1733406284005,20.5632042,240.38,240.31,7.97930043]
[1733406284533,20.0,240.38,240.34,7.97930043]
[1733406284706,20.0,240.38,240.33,7.97930043]
[1733406284912,0.5632042,240.37,240.3,7.97930043]
[1733406286206,0.5632042,240.37,240.31,7.97930043]
[1733406287226,0.5632042,240.37,240.3,7.97930043]
[1733406287430,7.97930043,240.34,240.24,0.5]
[1733406287727,7.97930043,240.37,240.29,7.97930043]
[1733406287902,0.5632042,240.36,240.29,7.97930043]
[1733406288101,0.5632042,240.36,240.22,24.276884]
[1733406288312,0.5632042,240.36,240.29,7.97930043]
[1733406290021,0.5632042,240.36,240.3,7.97930043]
[1733406291329,8.54250463,240.36,240.21,1.5817]
[1733406291527,7.97930043,240.35,240.28,7.97930043]
[1733406291717,0.5632042,240.34,240.28,7.97930043]
[1733406292036,8.54250463,240.34,240.27,7.97930043]
[1733406293136,0.5632042,240.34,240.28,7.97930043]
[1733406293822,0.5632042,240.34,240.29,7.97930043]
[1733406294013,0.5632042,240.35,240.29,7.97930043]
[1733406297124,0.5632042,240.35,240.3,7.97930043]
[1733406297641,0.5632042,240.35,240.29,7.97930043]
[1733406299010,20.0,240.37,240.31,7.97930043]
[1733406299221,0.5632042,240.36,240.31,7.97930043]
[1733406299416,8.54250463,240.38,240.31,7.97930043]
[1733406300225,0.5632042,240.39,240.33,7.97930043]
[1733406300957,0.5632042,240.39,240.24,11.52992688]
[1733406301246,8.54250463,240.4,240.33,7.97930043]
[1733406301630,23.776884,240.39,240.33,7.97930043]
[1733406302630,23.776884,240.39,240.24,43.4471286]
[1733406302631,24.3400882,240.39,240.32,7.97930043]
[1733406304622,24.3400882,240.39,240.33,7.97930043]
[1733406306037,0.5632042,240.4,240.35,7.97930043]
[1733406306230,7.97930043,240.45,240.38,7.97930043]
[1733406306551,0.5632042,240.44,240.38,7.97930043]
[1733406306848,7.97930043,240.4,240.33,7.97930043]
[1733406307017,0.5632042,240.39,240.33,7.97930043]
[1733406307220,0.5632042,240.39,240.27,20.0]
[1733406307429,0.5632042,240.39,240.33,7.97930043]
[1733406307838,0.5632042,240.39,240.34,7.97930043]
[1733406308015,24.3400882,240.4,240.34,7.97930043]
[1733406308224,7.97930043,240.44,240.37,7.97930043]
[1733406308547,0.5632042,240.43,240.37,7.97930043]
[1733406308949,7.97930043,240.44,240.37,7.97930043]
[1733406309319,7.97930043,240.45,240.37,7.97930043]
[1733406309631,7.97930043,240.43,240.36,7.97930043]
[1733406310249,0.5632042,240.42,240.35,7.97930043]
[1733406310948,8.54250463,240.43,240.35,7.97930043]
[1733406311314,31.75618443,240.41,240.34,7.97930043]
[1733406311537,8.54250463,240.4,240.32,7.97930043]
[1733406311956,7.97930043,240.38,240.25,0.62406567]
[1733406312159,7.97930043,240.35,240.21,2.0817]
[1733406312356,0.5632042,240.34,240.27,7.97930043]
[1733406312532,7.97930043,240.34,240.27,7.97930043]
[1733406312729,0.5632042,240.37,240.21,2.0817]
[1733406312730,7.97930043,240.35,240.21,2.0817]
[1733406313059,0.5632042,240.34,240.27,7.97930043]
[1733406313358,7.97930043,240.35,240.27,7.97930043]
[1733406313567,31.75618443,240.36,240.28,7.97930043]
[1733406313761,7.784,240.38,240.3,7.97930043]
[1733406313937,0.5632042,240.37,240.31,7.97930043]
[1733406314134,6.2083,240.38,240.36,7.97930043]
[1733406315355,6.2083,240.38,240.35,7.97930043]
[1733406315863,0.5632042,240.42,240.36,7.97930043]
[1733406316154,0.5632042,240.42,240.35,7.97930043]
[1733406317156,7.97930043,240.39,240.27,20.0]
[1733406317360,8.54250463,240.38,240.31,7.97930043]
[1733406318557,0.5632042,240.38,240.32,7.97930043]
[1733406322470,8.54250463,240.38,240.31,7.97930043]
[1733406323141,7.97930043,240.32,240.22,0.62409696]
[1733406323341,7.97930043,240.3,240.23,7.97930043]
[1733406323548,7.97930043,240.27,240.17,0.5]
[1733406323769,7.97930043,240.28,240.2,7.97930043]
[1733406324063,7.97930043,240.28,240.21,7.97930043]
[1733406324447,7.97930043,240.29,240.21,7.97930043]
[1733406325144,2.1964042,240.33,240.22,7.97930043]
[1733406325480,2.1964042,240.33,240.26,7.97930043]
[1733406325649,2.1964042,240.33,240.27,7.97930043]
[1733406326040,6.4219,240.34,240.3,7.97930043]
[1733406326242,8.54250463,240.37,240.3,7.97930043]
[1733406326443,10.07420463,240.39,240.32,7.97930043]
[1733406326670,10.07420463,240.39,240.31,7.97930043]
[1733406326878,10.07420463,240.39,240.32,7.97930043]
[1733406327054,10.07420463,240.39,240.31,7.97930043]
[1733406327480,2.0949042,240.39,240.33,7.97930043]
[1733406327777,6.3514,240.4,240.35,7.97930043]
[1733406327996,6.3514,240.4,240.34,7.97930043]
[1733406329476,14.33070043,240.4,240.33,7.97930043]
[1733406329875,7.97930043,240.38,240.27,0.5]
[1733406330079,13.03124811,240.37,240.3,12.46804391]
[1733406330281,12.46804391,240.37,240.3,12.46804391]
[1733406330455,12.46804391,240.38,240.31,12.46804391]
[1733406330968,0.5632042,240.37,240.31,12.46804391]
[1733406331175,12.46804391,240.38,240.31,12.46804391]
[1733406331485,13.03124811,240.38,240.31,12.46804391]
[1733406332385,13.03124811,240.39,240.31,12.46804391]
[1733406332765,6.3514,240.4,240.34,12.46804391]
[1733406332974,13.03124811,240.39,240.32,12.46804391]
[1733406333591,12.46804391,240.38,240.31,12.46804391]
[1733406333888,13.03124811,240.39,240.32,12.46804391]
[1733406334090,12.46804391,240.39,240.32,12.46804391]
[1733406334285,6.3514,240.4,240.32,12.46804391]
[1733406334491,6.3514,240.4,240.35,12.46804391]
[1733406337194,1.5822,240.45,240.31,21.12398657]
[1733406337195,20.66124391,240.45,240.37,12.46804391]
[1733406337373,21.22444811,240.45,240.37,12.46804391]
[1733406337696,12.46804391,240.44,240.37,12.46804391]
[1733406338290,20.66124391,240.45,240.38,12.46804391]
[1733406338504,8.1932,240.45,240.39,12.46804391]
[1733406338971,8.1932,240.45,240.31,33.49819631]
[1733406338972,20.66124391,240.45,240.38,12.46804391]
[1733406340367,6.611,240.45,240.4,12.46804391]
[1733406340600,6.611,240.45,240.39,12.46804391]
[1733406342212,19.07904391,240.45,240.39,12.46804391]
[1733406344701,19.07904391,240.45,240.38,12.46804391]
[1733406346488,19.07904391,240.45,240.39,12.46804391]
[1733406346691,6.611,240.45,240.39,12.46804391]
[1733406348202,19.07904391,240.45,240.38,12.46804391]
[1733406350173,6.611,240.45,240.4,12.46804391]
[1733406350403,19.07904391,240.45,240.39,12.46804391]
[1733406350703,12.46804391,240.41,240.37,0.5]
[1733406350889,12.46804391,240.4,240.33,12.96804391]
[1733406351609,12.46804391,240.41,240.34,12.46804391]
[1733406351980,7.97696436,240.41,240.34,7.97696436]
[1733406352302,7.97696436,240.4,240.33,7.97696436]
[1733406353975,7.97696436,240.41,240.34,7.97696436]
[1733406354681,7.97696436,240.4,240.33,7.97696436]
[1733406354978,7.97696436,240.41,240.33,7.97696436]
[1733406355808,7.97696436,240.4,240.33,7.97696436]
[1733406356809,7.97696436,240.4,240.3,0.5]
[1733406356810,7.97696436,240.39,240.32,7.97696436]
[1733406356981,7.97696436,240.39,240.32,27.97696436]
[1733406357893,7.97696436,240.4,240.32,27.97696436]
[1733406358511,7.97696436,240.41,240.33,7.97696436]
[1733406359484,7.97696436,240.4,240.32,27.97696436]
[1733406360190,7.97696436,240.41,240.33,7.97696436]
[1733406360399,7.97696436,240.4,240.32,27.97696436]
[1733406361404,7.97696436,240.39,240.32,27.97696436]
[1733406362096,7.97696436,240.4,240.32,27.97696436]
[1733406362489,7.97696436,240.41,240.33,7.97696436]
[1733406363684,6.611,240.45,240.37,7.97696436]
[1733406363885,7.97696436,240.47,240.39,7.97696436]
[1733406364311,1.0363891,240.49,240.42,7.97696436]
[1733406364798,7.97696436,240.46,240.34,0.5]
[1733406365111,7.97696436,240.43,240.36,7.97696436]
[1733406365486,1.0363891,240.49,240.36,7.97696436]
[1733406365487,7.97696436,240.45,240.36,7.97696436]
[1733406365688,0.5632042,240.44,240.36,7.97696436]
[1733406366106,0.5632042,240.44,240.38,7.97696436]
[1733406368225,0.5632042,240.48,240.4,7.97696436]
[1733406368388,0.5632042,240.48,240.42,7.97696436]
[1733406368595,9.01335346,240.49,240.42,7.97696436]
[1733406369408,7.97696436,240.48,240.41,7.97696436]
[1733406369613,0.5632042,240.47,240.35,10.9013]
[1733406369910,7.97696436,240.46,240.35,0.5]
[1733406370113,0.5632042,240.45,240.37,7.97696436]
[1733406370818,0.5632042,240.45,240.39,7.97696436]
[1733406371119,0.5632042,240.48,240.43,7.97696436]
[1733406371281,0.5632042,240.48,240.36,32.40785744]
[1733406371282,8.54016856,240.48,240.4,7.97696436]
[1733406371484,8.54016856,240.48,240.36,0.5]
[1733406371705,8.54016856,240.48,240.4,7.97696436]
[1733406372226,0.5632042,240.48,240.4,7.97696436]
[1733406372524,7.97696436,240.47,240.38,7.97696436]
[1733406372814,0.5632042,240.46,240.4,7.97696436]
[1733406373193,0.5632042,240.46,240.42,7.97696436]
[1733406373395,0.5632042,240.48,240.42,7.97696436]
[1733406374596,0.5632042,240.48,240.44,7.97696436]
[1733406374914,1.0363891,240.49,240.43,7.97696436]
[1733406376399,0.4731849,240.49,240.46,7.97696436]
[1733406376621,0.4731849,240.49,240.48,7.97696436]
[1733406378395,0.5632042,240.56,240.49,1.5371]
[1733406378596,0.5632042,240.66,240.55,7.97696436]
[1733406378800,0.5632042,240.68,240.64,7.97696436]
[1733406379020,0.5632042,240.68,240.63,7.97696436]
[1733406379924,0.5632042,240.68,240.62,7.97696436]
[1733406380922,7.97696436,240.64,240.56,7.97696436]
[1733406381122,7.97696436,240.59,240.48,0.5]
[1733406381314,8.54016856,240.58,240.51,7.97696436]
[1733406382127,12.44744822,240.57,240.49,12.44744822]
[1733406382301,0.5632042,240.56,240.49,12.44744822]
[1733406382623,0.5632042,240.56,240.5,12.44744822]
[1733406384097,13.01065242,240.56,240.49,12.44744822]
[1733406384319,12.44744822,240.52,240.45,12.44744822]
[1733406384521,0.5632042,240.51,240.45,12.44744822]
[1733406385202,0.5632042,240.51,240.4,0.5]
[1733406385203,13.01065242,240.51,240.4,0.5]
[1733406385423,0.5632042,240.51,240.45,12.44744822]
[1733406387638,10.51065242,240.52,240.45,12.44744822]
[1733406388013,12.44744822,240.49,240.42,12.44744822]
[1733406388214,42.29263222,240.48,240.41,12.44744822]
[1733406388510,12.44744822,240.45,240.38,12.44744822]
[1733406388836,12.44744822,240.45,240.39,12.44744822]
[1733406389241,23.776884,240.45,240.39,12.44744822]
[1733406389530,7.5972,240.48,240.43,12.44744822]
[1733406389741,20.04464822,240.48,240.41,12.44744822]
[1733406390725,20.04464822,240.48,240.36,0.5]
[1733406390726,7.5972,240.48,240.44,12.44744822]
[1733406390933,6.0683,240.48,240.44,12.44744822]
[1733406391135,18.67874822,240.53,240.46,12.44744822]
[1733406391311,6.2313,240.53,240.48,12.44744822]
[1733406391713,6.2313,240.53,240.47,12.44744822]
[1733406392117,6.2313,240.53,240.48,12.44744822]
[1733406392439,6.2313,240.53,240.47,12.44744822]
[1733406392807,6.2313,240.53,240.48,12.44744822]
[1733406393010,12.44744822,240.56,240.5,12.44744822]
[1733406393333,12.44744822,240.57,240.5,12.44744822]
[1733406395320,6.156,240.58,240.53,12.44744822]
[1733406395523,6.156,240.58,240.53,4.159]
[1733406395943,18.60344822,240.58,240.53,4.159]
[1733406396447,6.156,240.58,240.55,4.159]
[1733406396625,1.5727,240.6,240.55,4.159]
[1733406397417,12.44744822,240.57,240.56,4.159]
[1733406398431,12.44744822,240.57,240.51,4.159]
[1733406398741,12.44744822,240.52,240.46,4.159]
[1733406398919,12.44744822,240.53,240.46,16.60644822]
[1733406399717,12.44744822,240.54,240.48,4.159]
[1733406402844,36.22433222,240.56,240.49,4.159]
[1733406403021,12.44744822,240.58,240.52,4.159]
[1733406403222,14.02014822,240.6,240.53,16.60644822]
[1733406403421,6.5654,240.63,240.55,12.44744822]
[1733406403422,12.44744822,240.62,240.55,12.44744822]
[1733406403946,19.01284822,240.63,240.55,12.44744822]
[1733406404127,19.01284822,240.63,240.56,4.159]
[1733406405347,12.44744822,240.58,240.53,4.159]
[1733406405571,23.776884,240.61,240.53,4.159]
[1733406405716,12.44744822,240.59,240.53,4.159]
[1733406405920,36.22433222,240.61,240.53,16.60644822]
[1733406406746,36.22433222,240.61,240.54,12.44744822]
[1733406406926,36.22433222,240.61,240.55,4.159]
[1733406407239,6.5654,240.63,240.56,16.60644822]
[1733406408248,1.6368,240.65,240.6,4.159]
[1733406408550,12.44744822,240.65,240.6,4.159]
[1733406409345,12.44744822,240.65,240.59,4.159]
[1733406409961,12.44744822,240.64,240.59,4.159]
[1733406410258,12.44744822,240.64,240.58,4.159]
[1733406410468,12.44744822,240.62,240.58,4.159]
[1733406410663,23.776884,240.63,240.58,4.159]
[1733406410664,12.44744822,240.61,240.58,4.159]
[1733406411249,12.44744822,240.63,240.58,4.159]
[1733406411561,12.44744822,240.63,240.56,4.159]
[1733406411969,12.44744822,240.6,240.56,4.159]
[1733406412337,12.44744822,240.61,240.56,4.159]
[1733406412539,23.776884,240.6,240.55,4.159]
[1733406412738,12.44744822,240.63,240.57,4.159]
[1733406412941,23.776884,240.62,240.57,16.60644822]
[1733406413253,12.44744822,240.65,240.59,4.159]
[1733406413440,20.0,240.63,240.59,4.159]
[1733406414843,36.22433222,240.65,240.59,4.159]
[1733406415766,12.44744822,240.64,240.6,4.159]
[1733406416991,12.44744822,240.64,240.58,4.159]
[1733406417288,36.22433222,240.65,240.58,16.60644822]
[1733406417861,23.776884,240.65,240.58,16.60644822]
[1733406418586,23.776884,240.66,240.6,4.159]
[1733406419191,12.44744822,240.67,240.6,4.159]
[1733406419386,7.2712,240.68,240.62,4.159]
[1733406419683,12.44744822,240.69,240.62,16.60644822]
[1733406419887,19.71744822,240.72,240.64,16.60644822]
[1733406420462,19.71744822,240.72,240.58,2.0063]
[1733406420463,12.92063312,240.73,240.66,4.159]
[1733406420663,12.44744822,240.72,240.66,4.159]
[1733406420870,12.44744822,240.69,240.66,4.159]
[1733406421589,12.44744822,240.69,240.62,4.159]
[1733406421895,12.44744822,240.69,240.62,16.60644822]
[1733406422194,20.0,240.69,240.64,16.60644822]
[1733406422490,32.44744822,240.69,240.64,4.159]
[1733406422783,12.44744822,240.67,240.64,4.159]
[1733406423088,12.44744822,240.67,240.6,4.159]
[1733406423273,12.44744822,240.67,240.6,16.60644822]
[1733406423472,12.44744822,240.66,240.6,4.159]
[1733406424291,12.44744822,240.67,240.61,4.159]
[1733406425166,12.44744822,240.64,240.61,4.159]
[1733406425496,12.44744822,240.64,240.58,4.159]
[1733406425789,12.44744822,240.65,240.58,4.159]
[1733406425960,12.44744822,240.64,240.58,4.159]
[1733406426158,12.44744822,240.6,240.58,4.159]
[1733406426361,12.44744822,240.59,240.54,4.159]
[1733406426580,12.44744822,240.58,240.54,4.159]
[1733406426778,12.44744822,240.59,240.54,4.159]
[1733406426967,12.44744822,240.61,240.54,4.159]
[1733406427486,7.2709,240.69,240.6,4.159]
[1733406427675,23.776884,240.65,240.6,4.159]
[1733406427868,12.44744822,240.66,240.6,4.159]
[1733406428069,12.44744822,240.65,240.6,4.159]
[1733406428487,12.44744822,240.64,240.59,4.159]
[1733406428694,12.44744822,240.63,240.59,4.159]
[1733406429484,12.44744822,240.63,240.56,4.159]
[1733406429787,36.22433222,240.62,240.56,4.159]
[1733406430578,36.22433222,240.62,240.54,12.44744822]
[1733406430579,36.22433222,240.62,240.55,4.159]
[1733406431182,12.44744822,240.61,240.55,4.159]
[1733406431380,12.44744822,240.56,240.47,1.5713]
[1733406431694,12.44744822,240.56,240.48,16.60644822]
[1733406431997,23.776884,240.57,240.51,16.60644822]
[1733406432197,23.776884,240.57,240.51,4.159]
[1733406432691,12.44744822,240.58,240.51,4.159]
[1733406433066,23.776884,240.57,240.51,4.159]
[1733406433468,23.776884,240.57,240.52,4.159]
[1733406433891,36.22433222,240.57,240.52,4.159]
[1733406434279,12.44744822,240.56,240.52,4.159]
[1733406434487,23.776884,240.55,240.52,4.159]
[1733406434687,23.776884,240.55,240.5,4.159]
[1733406438589,12.44744822,240.54,240.52,4.159]
[1733406438782,36.22433222,240.55,240.52,4.159]
[1733406438987,23.776884,240.55,240.52,4.159]
[1733406439187,36.22433222,240.55,240.52,4.159]
[1733406440078,31.74545228,240.55,240.48,4.159]
[1733406440680,7.96856828,240.53,240.48,4.159]
[1733406440880,31.74545228,240.53,240.48,4.159]
[1733406441097,31.051984,240.55,240.48,4.159]
[1733406441405,7.96856828,240.54,240.48,4.159]
[1733406441608,23.776884,240.53,240.48,4.159]
[1733406442117,31.74545228,240.53,240.48,4.159]
[1733406442602,23.776884,240.53,240.48,4.159]
[1733406444884,23.776884,240.53,240.38,0.62369738]
[1733406444885,7.2771,240.48,240.38,0.62369738]
[1733406445090,23.776884,240.4,240.33,14.34136828]
[1733406445703,7.96856828,240.39,240.31,9.48396828]
[1733406446114,23.776884,240.38,240.31,1.5154]
[1733406446285,23.776884,240.4,240.31,1.5154]
[1733406446482,7.96856828,240.37,240.31,1.5154]
[1733406447206,7.96856828,240.37,240.32,4.159]
[1733406447992,12.4691653,240.37,240.32,4.159]
[1733406449906,20.0,240.34,240.32,4.159]
[1733406451412,12.4691653,240.36,240.32,4.159]
[1733406451923,12.4691653,240.4,240.34,4.159]
[1733406452091,12.4691653,240.41,240.34,16.6281653]
[1733406452610,12.4691653,240.42,240.36,4.159]
[1733406454200,12.4691653,240.42,240.37,4.159]
[1733406454544,12.4691653,240.47,240.39,12.4691653]
[1733406454812,12.4691653,240.44,240.37,12.4691653]
[1733406455014,12.4691653,240.43,240.36,12.4691653]
[1733406455316,12.4691653,240.41,240.35,4.159]
[1733406456904,12.4691653,240.42,240.36,4.159]
[1733406457516,12.4691653,240.41,240.36,4.159]
[1733406457712,12.4691653,240.41,240.31,2.0154]
[1733406457713,12.4691653,240.38,240.31,5.6744]
[1733406458407,12.4691653,240.37,240.31,5.6744]
[1733406459997,20.0,240.36,240.31,5.6744]
[1733406460197,12.4691653,240.36,240.31,5.6744]